fUSD/lending_fUSD_20240628
["ID","MTS","AMOUNT","RATE_DAILY","PERIOD"]
[330555011,1719565835195,-500.0,0.00019178,2]
[330555012,1719565835204,-500.0,0.00019178,2]
[330555013,1719565835215,-1681.51,0.00019178,2]
[330555014,1719565835224,-830.19,0.00019178,2]
[330555015,1719565835235,-1115.0,0.00019178,2]
[330555016,1719565835244,-752.49,0.00019178,2]
[330555017,1719565835254,-500.0,0.00019178,2]
[330555018,1719565835263,-500.0,0.00019178,2]
[330555019,1719565835272,-500.0,0.00019178,2]
[330555020,1719565835282,-1561.39,0.00019178,2]
[330555021,1719565835291,-1105.61,0.00019178,2]
[330555022,1719565835300,-565.59,0.00019178,2]
[330555023,1719565835309,-500.0,0.00019178,2]
[330555024,1719565835319,-1878.17,0.00019178,2]
[330555025,1719565835329,-1285.96,0.00019178,2]
[330555026,1719565835339,-500.0,0.00019178,2]
[330555027,1719565835348,-764.67,0.00019178,2]
[330555028,1719565835357,-500.0,0.00019178,2]
[330555029,1719565835366,-538.33277401,0.00019178,2]
[330555030,1719565835375,-500.0,0.00019178,2]
[330555031,1719565835384,-500.0,0.00019178,2]
[330555032,1719565835394,-500.0,0.00019178,2]
[330555033,1719565835403,-151.980682,0.00019178,2]
[330555034,1719565835412,-784.13,0.00019178,2]
[330555035,1719565835421,-534.26445556,0.00019178,2]
[330555036,1719565835430,-1876.51,0.00019178,2]
[330555037,1719565835440,-500.0,0.00019178,2]
[330555038,1719565835449,-500.0,0.00019178,2]
[330555039,1719565835461,-1217.15,0.00019178,2]
[330555040,1719565835471,-500.0,0.00019178,2]
[330555041,1719565835480,-500.0,0.00019178,2]
[330555042,1719565835490,-500.0,0.00019178,2]
[330555043,1719565835499,-1081.38,0.00019178,2]
[330555044,1719565835509,-705.23,0.00019178,2]
[330555045,1719565835518,-500.0,0.00019178,2]
[330555046,1719565835528,-506.42,0.00019178,2]
[330555047,1719565835540,-978.37,0.00019178,2]
[330555048,1719565835551,-500.0,0.00019178,2]
[330555049,1719565835560,-500.0,0.00019178,2]
[330555050,1719565835569,-1293.14,0.00019178,2]
[330555051,1719565835579,-1443.36,0.00019178,2]
[330555052,1719565835588,-500.0,0.00019178,2]
[330555053,1719565835598,-1146.7,0.00019178,2]
[330555054,1719565835607,-500.0,0.00019178,2]
[330555055,1719565835616,-713.84,0.00019178,2]
[330555056,1719565835626,-500.0,0.00019178,2]
[330555057,1719565835636,-500.0,0.00019178,2]
[330555058,1719565835646,-500.0,0.00019178,2]
[330555059,1719565835655,-869.91,0.00019178,2]
[330555060,1719565835665,-500.0,0.00019178,2]
[330555061,1719565835675,-1063.49,0.00019178,2]
[330555062,1719565835686,-1439.92,0.00019178,2]
[330555063,1719565835696,-500.0,0.00019178,2]
[330555064,1719565835708,-500.0,0.00019178,2]
[330555065,1719565835718,-790.46,0.00019178,2]
[330555066,1719565835730,-500.0,0.00019178,2]
[330555067,1719565835740,-500.0,0.00019178,2]
[330555068,1719565835749,-559.81,0.00019178,2]
[330555069,1719565835758,-500.0,0.00019178,2]
[330555070,1719565835768,-500.0,0.00019178,2]
[330555071,1719565835777,-500.0,0.00019178,2]
[330555072,1719565835786,-1377.54,0.00019178,2]
[330555073,1719565835795,-500.0,0.00019178,2]
[330555074,1719565835804,-4328.47,0.00019178,2]
[330555075,1719565835813,-500.0,0.00019178,2]
[330555076,1719565835822,-500.0,0.00019178,2]
[330555077,1719565835833,-500.0,0.00019178,2]
[330555078,1719565835842,-750.1,0.00019178,2]
[330555079,1719565835851,-500.0,0.00019178,2]
[330555080,1719565835861,-500.0,0.00019178,2]
[330555081,1719565835870,-500.0,0.00019178,2]
[330555082,1719565835880,-240.027872,0.00019178,2]
[330555083,1719565836181,-500.0,0.00019178,2]
[330555084,1719565836192,-500.0,0.00019178,2]
[330555085,1719565836203,-192.01866806,0.00019178,2]
[330555086,1719565836213,-151.0,0.00019178,2]
[330555087,1719565836222,-1303.92,0.00019178,2]
[330555088,1719565836232,-500.0,0.00019178,2]
[330555089,1719565836242,-151.0,0.00019178,2]
[330555090,1719565836252,-500.0,0.00019178,2]
[330555091,1719565836262,-576.57,0.00019178,2]
[330555092,1719565836271,-547.36,0.00019178,2]
[330555093,1719565836281,-542.52,0.00019178,2]
[330555094,1719565836291,-500.0,0.00019178,2]
[330555095,1719565836302,-500.0,0.00019178,2]
[330555096,1719565836312,-500.0,0.00019178,2]
[330555097,1719565836323,-509.61,0.00019178,2]
[330555098,1719565836333,-1003.04,0.00019178,2]
[330555099,1719565836342,-500.0,0.00019178,2]
[330555100,1719565836351,-1703.56,0.00019178,2]
[330555101,1719565836360,-500.0,0.00019178,2]
[330555102,1719565836370,-151.0,0.00019178,2]
[330555103,1719565836379,-151.0,0.00019178,2]
[330555104,1719565836388,-151.0,0.00019178,2]
[330555105,1719565836398,-151.0,0.00019178,2]
[330555106,1719565836407,-500.0,0.00019178,2]
[330555107,1719565836416,-151.0,0.00019178,2]
[330555108,1719565836426,-655.75,0.00019178,2]
[330555109,1719565836435,-252.7460123,0.00019178,2]
[330555110,1719565836445,-500.0,0.00019178,2]
[330555111,1719565836456,-500.0,0.00019178,2]
[330555112,1719565836468,-500.0,0.00019178,2]
[330555113,1719565836477,-1154.75,0.00019178,2]
[330555114,1719565836487,-1025.95,0.00019178,2]
[330555115,1719565836498,-500.0,0.00019178,2]
[330555116,1719565836507,-1141.38,0.00019178,2]
[330555117,1719565836516,-500.0,0.00019178,2]
[330555118,1719565836525,-500.0,0.00019178,2]
[330555119,1719565836534,-504.63,0.00019178,2]
[330555120,1719565836545,-500.0,0.00019178,2]
[330555121,1719565836556,-500.0,0.00019178,2]
[330555122,1719565836565,-151.0,0.00019178,2]
[330555123,1719565836575,-151.0,0.00019178,2]
[330555124,1719565836585,-500.0,0.00019178,2]
[330555125,1719565836594,-151.0,0.00019178,2]
[330555126,1719565836603,-154.53207,0.00019178,2]
[330555127,1719565836613,-708.73,0.00019178,2]
[330555128,1719565836623,-523.27,0.00019178,2]
[330555129,1719565836634,-500.0,0.00019178,2]
[330555130,1719565836643,-500.0,0.00019178,2]
[330555131,1719565836653,-942.45,0.00019178,2]
[330555132,1719565836662,-500.0,0.00019178,2]
[330555133,1719565836672,-501.4,0.00019178,2]
[330555134,1719565836683,-920.83,0.00019178,2]
[330555135,1719565836692,-500.0,0.00019178,2]
[330555136,1719565836702,-500.0,0.00019178,2]
[330555137,1719565836711,-4136.39,0.00019178,2]
[330555138,1719565836721,-500.0,0.00019178,2]
[330555139,1719565836730,-500.0,0.00019178,2]
[330555140,1719565836739,-500.0,0.00019178,2]
[330555141,1719565836749,-500.0,0.00019178,2]
[330555142,1719565836759,-500.0,0.00019178,2]
[330555143,1719565836768,-500.0,0.00019178,2]
[330555144,1719565836778,-2793.94,0.00019178,2]
[330555145,1719565836787,-642.47,0.00019178,2]
[330555146,1719565836797,-1541.19,0.00019178,2]
[330555147,1719565836807,-500.0,0.00019178,2]
[330555148,1719565836816,-500.0,0.00019178,2]
[330555149,1719565836827,-1248.83,0.00019178,2]
[330555150,1719565836838,-1389.11,0.00019178,2]
[330555151,1719565836847,-500.0,0.00019178,2]
[330555152,1719565836857,-1384.86,0.00019178,2]
[330555153,1719565836867,-874.62,0.00019178,2]
[330555154,1719565836876,-500.0,0.00019178,2]
[330555155,1719565836886,-1517.3,0.00019178,2]
[330555156,1719565836896,-627.86,0.00019178,2]
[330555157,1719565836906,-500.0,0.00019178,2]
[330555158,1719565836917,-500.0,0.00019178,2]
[330555159,1719565836927,-1444.07,0.00019178,2]
[330555160,1719565836936,-500.0,0.00019178,2]
[330555161,1719565836946,-500.0,0.00019178,2]
[330555162,1719565836955,-1276.75,0.00019178,2]
[330555163,1719565836965,-1211.86,0.00019178,2]
[330555164,1719565836975,-500.0,0.00019178,2]
[330555165,1719565836984,-500.0,0.00019178,2]
[330555166,1719565836994,-1561.83,0.00019178,2]
[330555167,1719565837003,-1828.0,0.00019178,2]
[330555168,1719565837013,-1334.98,0.00019178,2]
[330555169,1719565837023,-4362.72,0.00019178,2]
[330555170,1719565837032,-500.0,0.00019178,2]
[330555172,1719565837042,-500.0,0.00019178,2]
[330555173,1719565837051,-500.0,0.00019178,2]
[330555174,1719565837061,-764.37,0.00019178,2]
[330555175,1719565837071,-500.0,0.00019178,2]
[330555176,1719565837081,-500.0,0.00019178,2]
[330555177,1719565837090,-500.0,0.00019178,2]
[330555178,1719565837100,-500.0,0.00019178,2]
[330555179,1719565837109,-153.538116,0.00019178,2]
[330555180,1719565837119,-754.61,0.00019178,2]
[330555181,1719565837129,-500.0,0.00019178,2]
[330555182,1719565837138,-500.0,0.00019178,2]
[330555183,1719565837148,-842.15,0.00019178,2]
[330555184,1719565837157,-500.0,0.00019178,2]
[330555185,1719565837167,-510.39,0.00019178,2]
[330555186,1719565837176,-601.94,0.00019178,2]
[330555187,1719565837185,-594.95,0.00019178,2]
[330555188,1719565837195,-500.0,0.00019178,2]
[330555189,1719565837204,-657.32,0.00019178,2]
[330555190,1719565837214,-500.0,0.00019178,2]
[330555191,1719565837223,-500.0,0.00019178,2]
[330555192,1719565837233,-500.0,0.00019178,2]
[330555193,1719565837242,-500.0,0.00019178,2]
[330555194,1719565837252,-500.0,0.00019178,2]
[330555195,1719565837262,-1259.08,0.00019178,2]
[330555196,1719565837271,-500.0,0.00019178,2]
[330555197,1719565837281,-500.0,0.00019178,2]
[330555198,1719565837291,-500.0,0.00019178,2]
[330555199,1719565837300,-500.0,0.00019178,2]
[330555200,1719565837310,-500.0,0.00019178,2]
[330555201,1719565837319,-895.07,0.00019178,2]
[330555202,1719565837330,-500.0,0.00019178,2]
[330555203,1719565837339,-746.89,0.00019178,2]
[330555204,1719565837348,-500.0,0.00019178,2]
[330555205,1719565837358,-500.0,0.00019178,2]
[330555206,1719565837367,-2273.41,0.00019178,2]
[330555207,1719565837376,-706.58,0.00019178,2]
[330555208,1719565837386,-500.0,0.00019178,2]
[330555209,1719565837395,-500.0,0.00019178,2]
[330555210,1719565837406,-500.0,0.00019178,2]
[330555211,1719565837416,-1182.59,0.00019178,2]
[330555212,1719565837426,-713.55,0.00019178,2]
[330555213,1719565837436,-1210.2,0.00019178,2]
[330555214,1719565837446,-500.0,0.00019178,2]
[330555215,1719565837458,-500.0,0.00019178,2]
[330555216,1719565837471,-500.0,0.00019178,2]
[330555217,1719565837482,-825.78,0.00019178,2]
[330555218,1719565837493,-901.48,0.00019178,2]
[330555219,1719565837503,-563.86591048,0.00019178,2]
[330555220,1719565837512,-500.0,0.00019178,2]
[330555221,1719565837522,-500.0,0.00019178,2]
[330555222,1719565837534,-500.0,0.00019178,2]
[330555223,1719565837546,-500.0,0.00019178,2]
[330555224,1719565837555,-500.0,0.00019178,2]
[330555225,1719565837566,-500.0,0.00019178,2]
[330555226,1719565837577,-731.37,0.00019178,2]
[330555227,1719565837589,-500.0,0.00019178,2]
[330555228,1719565837598,-500.0,0.00019178,2]
[330555229,1719565837611,-500.0,0.00019178,2]
[330555230,1719565837620,-1469.57,0.00019178,2]
[330555231,1719565837631,-500.0,0.00019178,2]
[330555232,1719565837641,-1185.21,0.00019178,2]
[330555233,1719565837650,-500.0,0.00019178,2]
[330555234,1719565837659,-500.0,0.00019178,2]
[330555235,1719565837669,-500.0,0.00019178,2]
[330555236,1719565837678,-788.31,0.00019178,2]
[330555237,1719565837688,-500.0,0.00019178,2]
[330555238,1719565837697,-689.23,0.00019178,2]
[330555239,1719565837706,-565.51,0.00019178,2]
[330555240,1719565837715,-511.0,0.00019178,2]
[330555241,1719565837725,-1102.46,0.00019178,2]
[330555242,1719565837735,-1330.59,0.00019178,2]
[330555243,1719565837745,-1444.2,0.00019178,2]
[330555244,1719565837756,-500.0,0.00019178,2]
[330555245,1719565837765,-500.0,0.00019178,2]
[330555246,1719565837776,-151.0,0.00019178,2]
[330555247,1719565837786,-268.605316,0.00019178,2]
[330555248,1719565837796,-1098.48,0.00019178,2]
[330555249,1719565837806,-500.0,0.00019178,2]
[330555250,1719565837817,-500.0,0.00019178,2]
[330555251,1719565837827,-500.0,0.00019178,2]
[330555252,1719565837839,-500.0,0.00019178,2]
[330555253,1719565837848,-946.66,0.00019178,2]
[330555254,1719565837858,-500.0,0.00019178,2]
[330555255,1719565837867,-151.0,0.00019178,2]
[330555256,1719565837877,-151.0,0.00019178,2]
[330555257,1719565837886,-151.0,0.00019178,2]
[330555258,1719565837896,-151.0,0.00019178,2]
[330555259,1719565837906,-500.0,0.00019178,2]
[330555260,1719565837915,-500.0,0.00019178,2]
[330555261,1719565837925,-500.0,0.00019178,2]
[330555262,1719565837935,-544.16409696,0.00019178,2]
[330555263,1719565837944,-500.0,0.00019178,2]
[330555264,1719565837954,-500.0,0.00019178,2]
[330555265,1719565837963,-500.0,0.00019178,2]
[330555266,1719565837973,-618.56,0.00019178,2]
[330555267,1719565837982,-889.53,0.00019178,2]
[330555268,1719565837991,-500.0,0.00019178,2]
[330555269,1719565838002,-954.74,0.00019178,2]
[330555270,1719565838011,-1740.96,0.00019178,2]
[330555271,1719565838021,-500.0,0.00019178,2]
[330555272,1719565838030,-1274.27,0.00019178,2]
[330555273,1719565838040,-593.96,0.00019178,2]
[330555274,1719565838049,-500.0,0.00019178,2]
[330555275,1719565838059,-500.0,0.00019178,2]
[330555276,1719565838069,-623.35,0.00019178,2]
[330555277,1719565838078,-911.61,0.00019178,2]
[330555278,1719565838088,-500.0,0.00019178,2]
[330555279,1719565838098,-207.38321994,0.00019178,2]
[330555280,1719565838110,-500.0,0.00019178,2]
[330555281,1719565838120,-500.0,0.00019178,2]
[330555282,1719565838128,-500.1172422,0.00019178,2]
[330555283,1719565838138,-879.21,0.00019178,2]
[330555284,1719565838146,-1182.07,0.00019178,2]
[330555285,1719565838155,-500.0,0.00019178,2]
[330555286,1719565838164,-500.0,0.00019178,2]
[330555287,1719565838173,-724.66,0.00019178,2]
[330555288,1719565838183,-862.15,0.00019178,2]
[330555289,1719565838192,-500.0,0.00019178,2]
[330555290,1719565838201,-500.0,0.00019178,2]
[330555291,1719565838210,-631.09,0.00019178,2]
[330555292,1719565838218,-500.0,0.00019178,2]
[330555293,1719565838227,-854.5,0.00019178,2]
[330555294,1719565838236,-500.0,0.00019178,2]
[330555295,1719565838245,-500.0,0.00019178,2]
[330555296,1719565838254,-1288.06,0.00019178,2]
[330555298,1719565838263,-754.32,0.00019178,2]
[330555299,1719565838273,-271.40861986,0.00019178,2]
[330555300,1719565838282,-500.0,0.00019178,2]
[330555301,1719565838291,-500.0,0.00019178,2]
[330555302,1719565838300,-500.0,0.00019178,2]
[330555303,1719565838309,-686.46,0.00019178,2]
[330555304,1719565838318,-500.0,0.00019178,2]
[330555305,1719565838327,-715.82,0.00019178,2]
[330555306,1719565838338,-1785.61,0.00019178,2]
[330555307,1719565838347,-500.0,0.00019178,2]
[330555308,1719565838356,-500.0,0.00019178,2]
[330555309,1719565838366,-500.0,0.00019178,2]
[330555310,1719565838375,-961.87,0.00019178,2]
[330555311,1719565838384,-500.0,0.00019178,2]
[330555312,1719565838393,-500.0,0.00019178,2]
[330555313,1719565838403,-578.42,0.00019178,2]
[330555314,1719565838412,-500.0,0.00019178,2]
[330555315,1719565838420,-991.0,0.00019178,2]
[330555316,1719565838430,-500.0,0.00019178,2]
[330555317,1719565838439,-807.43,0.00019178,2]
[330555318,1719565838449,-500.0,0.00019178,2]
[330555319,1719565838462,-848.74,0.00019178,2]
[330555320,1719565838472,-500.0,0.00019178,2]
[330555321,1719565838482,-751.38,0.00019178,2]
[330555322,1719565838492,-153.594554,0.00019178,2]
[330555323,1719565838503,-827.64,0.00019178,2]
[330555324,1719565838513,-617.34,0.00019178,2]
[330555325,1719565838523,-500.0,0.00019178,2]
[330555326,1719565838534,-500.0,0.00019178,2]
[330555327,1719565838657,-500.0,0.00019178,2]
[330555328,1719565838667,-500.0,0.00019178,2]
[330555329,1719565838676,-500.0,0.00019178,2]
[330555330,1719565838685,-500.0,0.00019178,2]
[330555331,1719565838695,-2374.89,0.00019178,2]
[330555332,1719565838704,-1399.71,0.00019178,2]
[330555333,1719565838714,-800.03,0.00019178,2]
[330555334,1719565838723,-500.0,0.00019178,2]
[330555335,1719565838732,-500.0,0.00019178,2]
[330555336,1719565838742,-500.0,0.00019178,2]
[330555337,1719565838751,-975.7,0.00019178,2]
[330555338,1719565838761,-750.19,0.00019178,2]
[330555339,1719565838770,-500.0,0.00019178,2]
[330555340,1719565838779,-1042.35,0.00019178,2]
[330555341,1719565838788,-500.0,0.00019178,2]
[330555342,1719565838797,-500.0,0.00019178,2]
[330555343,1719565838806,-500.0,0.00019178,2]
[330555344,1719565838816,-1316.64,0.00019178,2]
[330555345,1719565838825,-500.0,0.00019178,2]
[330555346,1719565838836,-813.63,0.00019178,2]
[330555347,1719565838845,-1140.38,0.00019178,2]
[330555348,1719565838854,-500.0,0.00019178,2]
[330555349,1719565838864,-1038.82,0.00019178,2]
[330555350,1719565838874,-612.11,0.00019178,2]
[330555351,1719565838883,-500.0,0.00019178,2]
[330555352,1719565838892,-500.0,0.00019178,2]
[330555353,1719565838902,-500.0,0.00019178,2]
[330555354,1719565838913,-500.0,0.00019178,2]
[330555355,1719565838922,-1285.95,0.00019178,2]
[330555356,1719565838932,-500.0,0.00019178,2]
[330555357,1719565838941,-1037.99,0.00019178,2]
[330555358,1719565838951,-500.0,0.00019178,2]
[330555359,1719565838960,-500.0,0.00019178,2]
[330555360,1719565838970,-544.72,0.00019178,2]
[330555361,1719565838979,-1048.56,0.00019178,2]
[330555362,1719565838989,-3040.41,0.00019178,2]
[330555363,1719565838998,-500.0,0.00019178,2]
[330555364,1719565839008,-500.0,0.00019178,2]
[330555365,1719565839017,-500.0,0.00019178,2]
[330555366,1719565839028,-500.0,0.00019178,2]
[330555367,1719565839038,-500.0,0.00019178,2]
[330555368,1719565839048,-1194.55,0.00019178,2]
[330555369,1719565839058,-1099.83,0.00019178,2]
[330555370,1719565839067,-500.0,0.00019178,2]
[330555371,1719565839078,-500.0,0.00019178,2]
[330555372,1719565839088,-549.07,0.00019178,2]
[330555373,1719565839098,-190.1000068,0.00019178,2]
[330555374,1719565839108,-1169.32,0.00019178,2]
[330555375,1719565839118,-544.36,0.00019178,2]
[330555376,1719565839128,-500.0,0.00019178,2]
[330555377,1719565839138,-500.0,0.00019178,2]
[330555378,1719565839147,-500.0,0.00019178,2]
[330555379,1719565839156,-523.29,0.00019178,2]
[330555380,1719565839165,-1210.41,0.00019178,2]
[330555381,1719565839175,-1210.41,0.00019178,2]
[330555382,1719565839184,-1210.41,0.00019178,2]
[330555383,1719565839193,-500.0,0.00019178,2]
[330555384,1719565839203,-1210.41,0.00019178,2]
[330555385,1719565839213,-1210.41,0.00019178,2]
[330555386,1719565839222,-1210.41,0.00019178,2]
[330555387,1719565839232,-1210.41,0.00019178,2]
[330555388,1719565839242,-1210.41,0.00019178,2]
[330555389,1719565839252,-1210.41,0.00019178,2]
[330555390,1719565839261,-1210.41,0.00019178,2]
[330555391,1719565839271,-1210.41,0.00019178,2]
[330555392,1719565839281,-500.0,0.00019178,2]
[330555393,1719565839291,-200.0,0.00019178,2]
[330555394,1719565839301,-933.36,0.00019178,2]
[330555395,1719565839311,-500.0,0.00019178,2]
[330555396,1719565839320,-1028.56,0.00019178,2]
[330555397,1719565839330,-566.72,0.00019178,2]
[330555398,1719565839340,-500.0,0.00019178,2]
[330555399,1719565839349,-926.58,0.00019178,2]
[330555400,1719565839359,-2724.16,0.00019178,2]
[330555401,1719565839369,-500.0,0.00019178,2]
[330555402,1719565839379,-500.0,0.00019178,2]
[330555403,1719565839388,-500.0,0.00019178,2]
[330555404,1719565839398,-571.76,0.00019178,2]
[330555405,1719565839408,-500.0,0.00019178,2]
[330555406,1719565839418,-500.0,0.00019178,2]
[330555407,1719565839428,-707.39,0.00019178,2]
[330555408,1719565839437,-500.0,0.00019178,2]
[330555409,1719565839447,-500.0,0.00019178,2]
[330555410,1719565839462,-881.05,0.00019178,2]
[330555411,1719565839472,-601.52,0.00019178,2]
[330555412,1719565839481,-622.38,0.00019178,2]
[330555413,1719565839492,-1060.06,0.00019178,2]
[330555414,1719565839502,-500.0,0.00019178,2]
[330555415,1719565839512,-1043.05,0.00019178,2]
[330555416,1719565839522,-500.0,0.00019178,2]
[330555417,1719565839532,-500.0,0.00019178,2]
[330555418,1719565839543,-500.0,0.00019178,2]
[330555419,1719565839553,-500.0,0.00019178,2]
[330555420,1719565839562,-556.69722106,0.00019178,2]
[330555421,1719565839573,-744.73,0.00019178,2]
[330555422,1719565839583,-918.01,0.00019178,2]
[330555423,1719565839593,-500.0,0.00019178,2]
[330555424,1719565839603,-500.0,0.00019178,2]
[330555425,1719565839612,-1190.84,0.00019178,2]
[330555426,1719565839622,-500.0,0.00019178,2]
[330555427,1719565839631,-991.72,0.00019178,2]
[330555428,1719565839641,-500.0,0.00019178,2]
[330555429,1719565839651,-908.05,0.00019178,2]
[330555430,1719565839660,-500.0,0.00019178,2]
[330555431,1719565839670,-1691.08,0.00019178,2]
[330555432,1719565839680,-500.0,0.00019178,2]
[330555433,1719565839691,-2267.82,0.00019178,2]
[330555434,1719565839700,-500.0,0.00019178,2]
[330555435,1719565839710,-500.0,0.00019178,2]
[330555436,1719565839720,-500.0,0.00019178,2]
[330555437,1719565839730,-500.0,0.00019178,2]
[330555438,1719565839740,-588.1,0.00019178,2]
[330555439,1719565839750,-689.07,0.00019178,2]
[330555440,1719565839759,-500.0,0.00019178,2]
[330555441,1719565839770,-1152.04,0.00019178,2]
[330555442,1719565839780,-1305.74,0.00019178,2]
[330555443,1719565839789,-500.0,0.00019178,2]
[330555444,1719565839799,-500.0,0.00019178,2]
[330555445,1719565839809,-2228.95,0.00019178,2]
[330555446,1719565839818,-500.0,0.00019178,2]
[330555447,1719565839828,-1685.73,0.00019178,2]
[330555448,1719565839838,-4012.15,0.00019178,2]
[330555449,1719565839848,-500.0,0.00019178,2]
[330555450,1719565839857,-500.0,0.00019178,2]
[330555451,1719565839867,-534.73213721,0.00019178,2]
[330555452,1719565839877,-500.0,0.00019178,2]
[330555453,1719565839887,-500.0,0.00019178,2]
[330555454,1719565839896,-2369.3,0.00019178,2]
[330555455,1719565839908,-946.06,0.00019178,2]
[330555456,1719565839919,-706.53,0.00019178,2]
[330555457,1719565839930,-151.0,0.00019178,2]
[330555458,1719565839940,-500.0,0.00019178,2]
[330555459,1719565839949,-151.0,0.00019178,2]
[330555460,1719565839959,-500.0,0.00019178,2]
[330555461,1719565839968,-156.060678,0.00019178,2]
[330555462,1719565839977,-500.0,0.00019178,2]
[330555463,1719565839987,-743.3,0.00019178,2]
[330555464,1719565839996,-500.0,0.00019178,2]
[330555465,1719565840006,-2342.22,0.00019178,2]
[330555466,1719565840015,-588.09687763,0.00019178,2]
[330555467,1719565840026,-1869.75,0.00019178,2]
[330555468,1719565840035,-1452.72,0.00019178,2]
[330555469,1719565840045,-714.12,0.00019178,2]
[330555470,1719565840055,-500.0,0.00019178,2]
[330555471,1719565840065,-1023.63,0.00019178,2]
[330555472,1719565840074,-500.0,0.00019178,2]
[330555473,1719565840084,-1419.1,0.00019178,2]
[330555474,1719565840093,-869.53,0.00019178,2]
[330555475,1719565840103,-631.56502993,0.00019178,2]
[330555476,1719565840113,-500.0,0.00019178,2]
[330555477,1719565840124,-2206.12,0.00019178,2]
[330555478,1719565840134,-500.0,0.00019178,2]
[330555479,1719565840144,-1387.34,0.00019178,2]
[330555480,1719565840154,-151.0,0.00019178,2]
[330555481,1719565840163,-2490.56,0.00019178,2]
[330555482,1719565840172,-500.0,0.00019178,2]
[330555483,1719565840182,-1070.53,0.00019178,2]
[330555484,1719565840191,-1183.88,0.00019178,2]
[330555485,1719565840200,-500.0,0.00019178,2]
[330555486,1719565840210,-500.0,0.00019178,2]
[330555487,1719565840219,-500.0,0.00019178,2]
[330555488,1719565840234,-676.95,0.00019178,2]
[330555489,1719565840243,-500.0,0.00019178,2]
[330555490,1719565840252,-500.0,0.00019178,2]
[330555491,1719565840262,-500.0,0.00019178,2]
[330555492,1719565840272,-845.14,0.00019178,2]
[330555493,1719565840282,-507.16,0.00019178,2]
[330555494,1719565840291,-725.86,0.00019178,2]
[330555495,1719565840301,-500.0,0.00019178,2]
[330555496,1719565840310,-500.0,0.00019178,2]
[330555497,1719565840320,-1782.38,0.00019178,2]
[330555498,1719565840330,-4053.83,0.00019178,2]
[330555499,1719565840340,-500.0,0.00019178,2]
[330555500,1719565840349,-1680.15,0.00019178,2]
[330555501,1719565840359,-3502.72,0.00019178,2]
[330555502,1719565840372,-500.0,0.00019178,2]
[330555503,1719565840382,-3765.34,0.00019178,2]
[330555504,1719565840391,-500.0,0.00019178,2]
[330555505,1719565840401,-500.0,0.00019178,2]
[330555506,1719565840410,-500.0,0.00019178,2]
[330555507,1719565840420,-500.0,0.00019178,2]
[330555508,1719565840431,-500.0,0.00019178,2]
[330555509,1719565840441,-500.0,0.00019178,2]
[330555510,1719565840451,-500.0,0.00019178,2]
[330555511,1719565840466,-717.16,0.00019178,2]
[330555512,1719565840475,-1943.92,0.00019178,2]